[Event "Titled Tuesday Blitz June 27 Late 2023"]
[White "Shubin, Daniel"]
[Black "Howell, David W L"]
[WhiteFideId "30936470"]
[BlackFideId "410608"]
[WhiteElo "2237"]
[BlackElo "3002"]
[Result "0-1"]
[Round "7"]
[TimeControl "180+2"]
[Date "2023.06.27"]
[WhiteClock "0:00:05"]
[BlackClock "0:00:05"]
[Board "132"]

1. e4 {[%clk 0:03:00]}  c5 {[%clk 0:02:40]} 2. Nf3 {[%clk 0:02:58]}  Nc6 {[%clk 0:02:39]} 3. d4 {[%clk 0:02:57]}  cxd4 {[%clk 0:02:39]} 4. Nxd4 {[%clk 0:02:57]}  Nf6 {[%clk 0:02:40]} 5. Nc3 {[%clk 0:02:57]}  d6 {[%clk 0:02:39]} 6. Bc4 {[%clk 0:02:54]}  g6 {[%clk 0:02:34]} 7. h3 {[%clk 0:02:53]}  Bg7 {[%clk 0:02:34]} 8. Be3 {[%clk 0:02:53]}  O-O {[%clk 0:02:35]} 9. O-O {[%clk 0:02:53]}  Bd7 {[%clk 0:02:33]} 10. Bb3 {[%clk 0:02:53]}  Rc8 {[%clk 0:02:33]} 11. f4 {[%clk 0:02:54]}  a6 {[%clk 0:02:02]} 12. Qd3 {[%clk 0:02:52]}  b5 {[%clk 0:01:49]} 13. Rad1 {[%clk 0:02:47]}  Nxd4 {[%clk 0:01:34]} 14. Bxd4 {[%clk 0:02:48]}  b4 {[%clk 0:01:34]} 15. Nd5 {[%clk 0:02:45]}  Bb5 {[%clk 0:01:29]} 16. Qe3 {[%clk 0:02:18]}  Nxd5 {[%clk 0:01:26]} 17. exd5 {[%clk 0:02:16]}  Bxf1 {[%clk 0:01:25]} 18. Bxg7 {[%clk 0:02:13]}  Kxg7 {[%clk 0:01:26]} 19. Rxf1 {[%clk 0:02:13]}  Qd7 {[%clk 0:01:11]} 20. Qd4+ {[%clk 0:02:08]}  Kg8 {[%clk 0:01:10]} 21. Qxb4 {[%clk 0:02:08]}  Rc5 {[%clk 0:01:04]} 22. Re1 {[%clk 0:02:01]}  Rfc8 {[%clk 0:00:49]} 23. Qb6 {[%clk 0:01:51]}  a5 {[%clk 0:00:39]} 24. a4 {[%clk 0:01:48]}  h5 {[%clk 0:00:34]} 25. Qa6 {[%clk 0:01:14]}  Rb8 {[%clk 0:00:34]} 26. Qe2 {[%clk 0:01:08]}  Rc7 {[%clk 0:00:33]} 27. Qd2 {[%clk 0:01:06]}  Rb4 {[%clk 0:00:32]} 28. Qd3 {[%clk 0:01:02]}  Kg7 {[%clk 0:00:29]} 29. Re4 {[%clk 0:01:01]}  Qf5 {[%clk 0:00:24]} 30. Rxb4 {[%clk 0:00:51]}  Qxd3 {[%clk 0:00:18]} 31. cxd3 {[%clk 0:00:52]}  axb4 {[%clk 0:00:18]} 32. Bc4 {[%clk 0:00:52]}  Rc5 {[%clk 0:00:18]} 33. b3 {[%clk 0:00:47]}  Kf6 {[%clk 0:00:16]} 34. d4 {[%clk 0:00:47]}  Ra5 {[%clk 0:00:15]} 35. Kf2 {[%clk 0:00:45]}  e6 {[%clk 0:00:10]} 36. dxe6 {[%clk 0:00:42]}  fxe6 {[%clk 0:00:11]} 37. Ke3 {[%clk 0:00:41]}  Ra7 {[%clk 0:00:07]} 38. d5 {[%clk 0:00:34]}  e5 {[%clk 0:00:07]} 39. Ke4 {[%clk 0:00:32]}  exf4 {[%clk 0:00:04]} 40. Kxf4 {[%clk 0:00:31]}  g5+ {[%clk 0:00:05]} 41. Ke4 {[%clk 0:00:31]}  Re7+ {[%clk 0:00:05]} 42. Kf3 {[%clk 0:00:28]}  Re1 {[%clk 0:00:04]} 43. a5 {[%clk 0:00:28]}  Ra1 {[%clk 0:00:04]} 44. a6 {[%clk 0:00:28]}  Kf5 {[%clk 0:00:03]} 45. Ke3 {[%clk 0:00:26]}  Ke5 {[%clk 0:00:03]} 46. g4 {[%clk 0:00:23]}  h4 {[%clk 0:00:03]} 47. Kf3 {[%clk 0:00:22]}  Ra5 {[%clk 0:00:04]} 48. Ke3 {[%clk 0:00:21]}  Ra3 {[%clk 0:00:05]} 49. Kf3 {[%clk 0:00:20]}  Kd4 {[%clk 0:00:05]} 50. Kf2 {[%clk 0:00:15]}  Ra1 {[%clk 0:00:06]} 51. Kf3 {[%clk 0:00:15]}  Ra2 {[%clk 0:00:06]} 52. Bd3 {[%clk 0:00:05]}  Kxd3 {[%clk 0:00:05]} 0-1


[Site "https://www.chess.com"]

[Event "Titled Tuesday Blitz June 27 Late 2023"]
[White "Toncheva, Nadya"]
[Black "Vila Dupla, Aurelio"]
[WhiteFideId "2924056"]
[BlackFideId "2203383"]
[WhiteElo "2468"]
[BlackElo "2191"]
[Result "1-0"]
[Round "7"]
[TimeControl "180+2"]
[Date "2023.06.27"]
[WhiteClock "0:00:03"]
[BlackClock "0:00:00"]
[Board "133"]

1. d4 {[%clk 0:02:49]}  Nf6 {[%clk 0:02:59]} 2. c4 {[%clk 0:02:49]}  g6 {[%clk 0:02:53]} 3. Nc3 {[%clk 0:02:49]}  d5 {[%clk 0:02:48]} 4. Qb3 {[%clk 0:02:49]}  dxc4 {[%clk 0:02:48]} 5. Qxc4 {[%clk 0:02:50]}  Bg7 {[%clk 0:02:47]} 6. e4 {[%clk 0:02:50]}  O-O {[%clk 0:02:45]} 7. Bf4 {[%clk 0:02:50]}  Nc6 {[%clk 0:02:36]} 8. d5 {[%clk 0:02:48]}  e5 {[%clk 0:02:25]} 9. Bg3 {[%clk 0:02:34]}  Nd4 {[%clk 0:02:14]} 10. Bd3 {[%clk 0:02:25]}  Nh5 {[%clk 0:02:03]} 11. Nge2 {[%clk 0:02:22]}  c6 {[%clk 0:01:55]} 12. O-O {[%clk 0:02:18]}  cxd5 {[%clk 0:01:55]} 13. Nxd5 {[%clk 0:02:17]}  Be6 {[%clk 0:01:53]} 14. Nxd4 {[%clk 0:02:02]}  exd4 {[%clk 0:01:52]} 15. Rac1 {[%clk 0:01:55]}  Nxg3 {[%clk 0:01:51]} 16. hxg3 {[%clk 0:01:53]}  Rc8 {[%clk 0:01:46]} 17. Qb5 {[%clk 0:01:50]}  b6 {[%clk 0:01:29]} 18. Rxc8 {[%clk 0:01:47]}  Bxc8 {[%clk 0:01:27]} 19. Rc1 {[%clk 0:01:43]}  Be6 {[%clk 0:01:19]} 20. Qc6 {[%clk 0:01:26]}  Qg5 {[%clk 0:01:03]} 21. Nf4 {[%clk 0:01:21]}  Bxa2 {[%clk 0:00:57]} 22. Ra1 {[%clk 0:01:16]}  Bb3 {[%clk 0:00:49]} 23. Rxa7 {[%clk 0:01:14]}  Qc5 {[%clk 0:00:48]} 24. Qxc5 {[%clk 0:01:07]}  bxc5 {[%clk 0:00:48]} 25. Rc7 {[%clk 0:01:08]}  Rb8 {[%clk 0:00:35]} 26. Rxc5 {[%clk 0:01:06]}  Ba2 {[%clk 0:00:35]} 27. Rb5 {[%clk 0:00:51]}  Rc8 {[%clk 0:00:31]} 28. Kh2 {[%clk 0:00:48]}  Bh6 {[%clk 0:00:27]} 29. Nd5 {[%clk 0:00:47]}  Kg7 {[%clk 0:00:23]} 30. Rb7 {[%clk 0:00:45]}  Bxd5 {[%clk 0:00:22]} 31. exd5 {[%clk 0:00:46]}  Rd8 {[%clk 0:00:19]} 32. Bc4 {[%clk 0:00:46]}  d3 {[%clk 0:00:19]} 33. Bxd3 {[%clk 0:00:46]}  Rxd5 {[%clk 0:00:18]} 34. Bc4 {[%clk 0:00:46]}  Rf5 {[%clk 0:00:18]} 35. Kg1 {[%clk 0:00:42]}  Bd2 {[%clk 0:00:18]} 36. b4 {[%clk 0:00:40]}  Bc3 {[%clk 0:00:17]} 37. b5 {[%clk 0:00:38]}  Bd4 {[%clk 0:00:17]} 38. Rd7 {[%clk 0:00:28]}  Bxf2+ {[%clk 0:00:16]} 39. Kf1 {[%clk 0:00:27]}  Bxg3+ {[%clk 0:00:16]} 40. Ke2 {[%clk 0:00:28]}  Rf2+ {[%clk 0:00:13]} 41. Ke3 {[%clk 0:00:27]}  Rf6 {[%clk 0:00:12]} 42. Kd4 {[%clk 0:00:24]}  Bf2+ {[%clk 0:00:12]} 43. Kd5 {[%clk 0:00:23]}  h5 {[%clk 0:00:12]} 44. Be2 {[%clk 0:00:13]}  h4 {[%clk 0:00:11]} 45. Bg4 {[%clk 0:00:12]}  Kh6 {[%clk 0:00:08]} 46. Ke5 {[%clk 0:00:09]}  Kg5 {[%clk 0:00:07]} 47. Bf3 {[%clk 0:00:08]}  Bg3+ {[%clk 0:00:05]} 48. Ke4 {[%clk 0:00:07]}  Bb8 {[%clk 0:00:03]} 49. Rd5+ {[%clk 0:00:07]}  Kh6 {[%clk 0:00:03]} 50. Kd3 {[%clk 0:00:06]}  Bg3 {[%clk 0:00:03]} 51. Bg4 {[%clk 0:00:06]}  Bf4 {[%clk 0:00:03]} 52. Kc4 {[%clk 0:00:06]}  Bg3 {[%clk 0:00:03]} 53. Rd8 {[%clk 0:00:06]}  Bf4 {[%clk 0:00:03]} 54. Rh8+ {[%clk 0:00:06]}  Kg5 {[%clk 0:00:04]} 55. Bh3 {[%clk 0:00:06]}  Bg3 {[%clk 0:00:03]} 56. Re8 {[%clk 0:00:06]}  Rf4+ {[%clk 0:00:03]} 57. Kc5 {[%clk 0:00:05]}  Rf6 {[%clk 0:00:04]} 58. Re2 {[%clk 0:00:04]}  Bf4 {[%clk 0:00:03]} 59. b6 {[%clk 0:00:03]}  Bb8 {[%clk 0:00:00]} 60. b7 {[%clk 0:00:03]} 1-0


[Site "https://www.chess.com"]

[Event "Titled Tuesday Blitz June 27 Late 2023"]
[White "campochess"]
[Black "Haitin, Ilja"]
[BlackFideId "4501764"]
[WhiteElo "2159"]
[BlackElo "2360"]
[Result "0-1"]
[Round "7"]
[TimeControl "180+2"]
[Date "2023.06.27"]
[WhiteClock "0:01:19"]
[BlackClock "0:00:20"]
[Board "135"]

1. d4 {[%clk 0:02:59]}  Nf6 {[%clk 0:02:58]} 2. Bg5 {[%clk 0:02:59]}  e6 {[%clk 0:02:58]} 3. e4 {[%clk 0:02:59]}  h6 {[%clk 0:02:57]} 4. Bxf6 {[%clk 0:02:58]}  Qxf6 {[%clk 0:02:58]} 5. Nf3 {[%clk 0:02:58]}  g5 {[%clk 0:02:55]} 6. h3 {[%clk 0:02:54]}  Bg7 {[%clk 0:02:51]} 7. Nc3 {[%clk 0:02:54]}  O-O {[%clk 0:02:50]} 8. Bd3 {[%clk 0:02:53]}  d6 {[%clk 0:02:49]} 9. Qd2 {[%clk 0:02:52]}  Nc6 {[%clk 0:02:49]} 10. Ne2 {[%clk 0:02:44]}  e5 {[%clk 0:02:47]} 11. d5 {[%clk 0:02:44]}  Nd4 {[%clk 0:02:45]} 12. Nexd4 {[%clk 0:02:43]}  exd4 {[%clk 0:02:45]} 13. Nh2 {[%clk 0:02:39]}  Qe7 {[%clk 0:02:40]} 14. O-O {[%clk 0:02:38]}  c5 {[%clk 0:02:39]} 15. dxc6 {[%clk 0:02:36]}  bxc6 {[%clk 0:02:39]} 16. f4 {[%clk 0:02:36]}  gxf4 {[%clk 0:02:37]} 17. Rxf4 {[%clk 0:02:35]}  Qg5 {[%clk 0:02:34]} 18. Rf2 {[%clk 0:02:34]}  Qxd2 {[%clk 0:02:33]} 19. Rxd2 {[%clk 0:02:33]}  Rb8 {[%clk 0:02:29]} 20. b3 {[%clk 0:02:33]}  f5 {[%clk 0:02:26]} 21. exf5 {[%clk 0:02:31]}  Bxf5 {[%clk 0:02:26]} 22. Rf1 {[%clk 0:02:30]}  Bxd3 {[%clk 0:02:26]} 23. Rxd3 {[%clk 0:02:29]}  Rxf1+ {[%clk 0:02:25]} 24. Kxf1 {[%clk 0:02:29]}  Kf7 {[%clk 0:02:26]} 25. Nf3 {[%clk 0:02:26]}  c5 {[%clk 0:02:26]} 26. Rd2 {[%clk 0:02:23]}  Ke6 {[%clk 0:02:24]} 27. Re2+ {[%clk 0:02:22]}  Kd7 {[%clk 0:02:24]} 28. Nh4 {[%clk 0:02:20]}  Rf8+ {[%clk 0:02:22]} 29. Rf2 {[%clk 0:02:16]}  Rxf2+ {[%clk 0:02:06]} 30. Kxf2 {[%clk 0:02:16]}  Kc6 {[%clk 0:01:57]} 31. Kf3 {[%clk 0:02:15]}  d5 {[%clk 0:01:55]} 32. Nf5 {[%clk 0:02:11]}  Bf8 {[%clk 0:01:55]} 33. g4 {[%clk 0:02:10]}  Kb5 {[%clk 0:01:46]} 34. a3 {[%clk 0:02:09]}  a5 {[%clk 0:01:44]} 35. h4 {[%clk 0:02:07]}  a4 {[%clk 0:01:44]} 36. g5 {[%clk 0:02:05]}  hxg5 {[%clk 0:01:44]} 37. hxg5 {[%clk 0:02:05]}  axb3 {[%clk 0:01:18]} 38. cxb3 {[%clk 0:02:05]}  d3 {[%clk 0:01:18]} 39. Ke3 {[%clk 0:02:04]}  c4 {[%clk 0:01:18]} 40. bxc4+ {[%clk 0:01:59]}  dxc4 {[%clk 0:01:19]} 41. g6 {[%clk 0:01:58]}  Ka4 {[%clk 0:01:14]} 42. Nd6 {[%clk 0:01:56]}  Bh6+ {[%clk 0:01:00]} 43. Kf3 {[%clk 0:01:50]}  c3 {[%clk 0:00:59]} 44. Nc4 {[%clk 0:01:30]}  Kb3 {[%clk 0:00:48]} 45. Ne3 {[%clk 0:01:27]}  c2 {[%clk 0:00:30]} 46. Nf5 {[%clk 0:01:19]}  c1=Q {[%clk 0:00:20]} 0-1


[Site "https://www.chess.com"]

[Event "Titled Tuesday Blitz June 27 Late 2023"]
[White "Garmendiarov"]
[Black "Bongo Akanga Ndjila, Barthelemy"]
[BlackFideId "10609431"]
[WhiteElo "2303"]
[BlackElo "2080"]
[Result "1-0"]
[Round "7"]
[TimeControl "180+2"]
[Date "2023.06.27"]
[WhiteClock "0:01:39"]
[BlackClock "0:00:00"]
[Board "138"]

1. d4 {[%clk 0:03:00]}  d5 {[%clk 0:02:55]} 2. Bf4 {[%clk 0:03:01]}  Nf6 {[%clk 0:02:38]} 3. e3 {[%clk 0:03:01]}  e6 {[%clk 0:02:37]} 4. Nd2 {[%clk 0:03:00]}  Be7 {[%clk 0:02:34]} 5. Ngf3 {[%clk 0:02:59]}  Nh5 {[%clk 0:02:33]} 6. Be5 {[%clk 0:02:53]}  f6 {[%clk 0:02:33]} 7. Bg3 {[%clk 0:02:47]}  g6 {[%clk 0:02:31]} 8. Bd3 {[%clk 0:02:46]}  Nc6 {[%clk 0:02:25]} 9. c3 {[%clk 0:02:41]}  Kf7 {[%clk 0:02:02]} 10. O-O {[%clk 0:02:36]}  Nxg3 {[%clk 0:02:00]} 11. hxg3 {[%clk 0:02:35]}  Bd6 {[%clk 0:01:55]} 12. e4 {[%clk 0:02:34]}  Bd7 {[%clk 0:01:49]} 13. Qe2 {[%clk 0:02:30]}  Re8 {[%clk 0:01:43]} 14. e5 {[%clk 0:02:22]}  fxe5 {[%clk 0:01:39]} 15. dxe5 {[%clk 0:02:19]}  Be7 {[%clk 0:01:30]} 16. g4 {[%clk 0:02:00]}  Kg7 {[%clk 0:01:28]} 17. g3 {[%clk 0:01:59]}  Rf8 {[%clk 0:01:27]} 18. Kg2 {[%clk 0:01:58]}  Rf7 {[%clk 0:01:08]} 19. Rh1 {[%clk 0:01:57]}  Qg8 {[%clk 0:01:06]} 20. Qe3 {[%clk 0:01:55]}  Kh8 {[%clk 0:00:57]} 21. Ng5 {[%clk 0:01:47]}  Bxg5 {[%clk 0:00:54]} 22. Qxg5 {[%clk 0:01:48]}  Raf8 {[%clk 0:00:53]} 23. f4 {[%clk 0:01:47]}  Ne7 {[%clk 0:00:34]} 24. Nf3 {[%clk 0:01:43]}  c5 {[%clk 0:00:17]} 25. Rh6 {[%clk 0:01:40]}  c4 {[%clk 0:00:08]} 26. Bc2 {[%clk 0:01:40]}  b5 {[%clk 0:00:07]} 27. Rah1 {[%clk 0:01:40]}  a5 {[%clk 0:00:06]} 28. Qh4 {[%clk 0:01:40]}  b4 {[%clk 0:00:00]} 29. Ng5 {[%clk 0:01:39]} 1-0


[Site "https://www.chess.com"]

[Event "Titled Tuesday Blitz June 27 Late 2023"]
[White "Bulgurlu, Okan"]
[Black "Vasquez Garrido, Nuremberg"]
[WhiteFideId "6352316"]
[BlackFideId "4432118"]
[WhiteElo "2293"]
[BlackElo "2064"]
[Result "1-0"]
[Round "7"]
[TimeControl "180+2"]
[Date "2023.06.27"]
[WhiteClock "0:00:23"]
[BlackClock "0:00:33"]
[Board "139"]

1. e4 {[%clk 0:03:00]}  Nc6 {[%clk 0:02:58]} 2. Nc3 {[%clk 0:02:59]}  Nf6 {[%clk 0:02:51]} 3. g3 {[%clk 0:02:59]}  d5 {[%clk 0:02:51]} 4. exd5 {[%clk 0:02:58]}  Nxd5 {[%clk 0:02:52]} 5. Bg2 {[%clk 0:02:58]}  Nxc3 {[%clk 0:02:51]} 6. bxc3 {[%clk 0:02:58]}  e5 {[%clk 0:02:46]} 7. Ne2 {[%clk 0:02:49]}  Bc5 {[%clk 0:02:43]} 8. O-O {[%clk 0:02:47]}  Bg4 {[%clk 0:02:40]} 9. Rb1 {[%clk 0:02:46]}  Rb8 {[%clk 0:02:34]} 10. Rxb7 {[%clk 0:02:45]}  Ne7 {[%clk 0:02:14]} 11. Rxb8 {[%clk 0:02:42]}  Qxb8 {[%clk 0:02:15]} 12. d4 {[%clk 0:02:39]}  exd4 {[%clk 0:02:13]} 13. cxd4 {[%clk 0:02:40]}  Bb6 {[%clk 0:02:13]} 14. Ba3 {[%clk 0:02:33]}  Qd8 {[%clk 0:02:08]} 15. h3 {[%clk 0:01:56]}  Be6 {[%clk 0:02:04]} 16. Nf4 {[%clk 0:01:44]}  Qxd4 {[%clk 0:01:46]} 17. Nxe6 {[%clk 0:01:34]}  fxe6 {[%clk 0:01:46]} 18. Qh5+ {[%clk 0:01:31]}  g6 {[%clk 0:01:39]} 19. Qb5+ {[%clk 0:01:31]}  Kf7 {[%clk 0:01:36]} 20. Bb2 {[%clk 0:01:16]}  Qd8 {[%clk 0:01:30]} 21. Bxh8 {[%clk 0:00:58]}  Qxh8 {[%clk 0:01:31]} 22. Qd7 {[%clk 0:00:51]}  Qc3 {[%clk 0:01:28]} 23. Kh2 {[%clk 0:00:45]}  Kf6 {[%clk 0:01:18]} 24. Qe8 {[%clk 0:00:42]}  Qb4 {[%clk 0:00:36]} 25. Qf8+ {[%clk 0:00:34]}  Ke5 {[%clk 0:00:34]} 26. Re1+ {[%clk 0:00:23]}  Qxe1 {[%clk 0:00:33]} 27. Qf4# {[%clk 0:00:23]} 1-0


[Site "https://www.chess.com"]

[Event "Titled Tuesday Blitz June 27 Late 2023"]
[White "Aqib Javaid Butt"]
[Black "Sarkar, Justin"]
[WhiteFideId "7801262"]
[BlackFideId "2010011"]
[WhiteElo "2025"]
[BlackElo "2277"]
[Result "0-1"]
[Round "7"]
[TimeControl "180+2"]
[Date "2023.06.27"]
[WhiteClock "0:00:05"]
[BlackClock "0:00:03"]
[Board "141"]

1. d4 {[%clk 0:03:00]}  Nf6 {[%clk 0:02:20]} 2. Nf3 {[%clk 0:03:00]}  d5 {[%clk 0:02:18]} 3. c4 {[%clk 0:02:19]}  e6 {[%clk 0:02:16]} 4. e3 {[%clk 0:02:19]}  g6 {[%clk 0:02:07]} 5. Nc3 {[%clk 0:02:19]}  Bg7 {[%clk 0:02:06]} 6. Bd3 {[%clk 0:02:19]}  O-O {[%clk 0:02:04]} 7. O-O {[%clk 0:02:18]}  dxc4 {[%clk 0:01:59]} 8. Bxc4 {[%clk 0:02:18]}  c5 {[%clk 0:01:57]} 9. Qe2 {[%clk 0:02:17]}  cxd4 {[%clk 0:01:52]} 10. Rd1 {[%clk 0:02:14]}  Nc6 {[%clk 0:01:48]} 11. exd4 {[%clk 0:02:14]}  Nd5 {[%clk 0:01:43]} 12. Nxd5 {[%clk 0:02:01]}  exd5 {[%clk 0:01:43]} 13. Bb5 {[%clk 0:02:01]}  Bg4 {[%clk 0:01:42]} 14. Bxc6 {[%clk 0:02:00]}  bxc6 {[%clk 0:01:41]} 15. h3 {[%clk 0:02:00]}  Re8 {[%clk 0:01:38]} 16. Be3 {[%clk 0:01:59]}  Bf5 {[%clk 0:01:34]} 17. Rac1 {[%clk 0:01:51]}  Qb6 {[%clk 0:01:33]} 18. Qd2 {[%clk 0:01:46]}  a5 {[%clk 0:01:21]} 19. Bh6 {[%clk 0:01:40]}  Bh8 {[%clk 0:01:14]} 20. Qc3 {[%clk 0:01:09]}  Rac8 {[%clk 0:00:53]} 21. Qd2 {[%clk 0:00:50]}  a4 {[%clk 0:00:50]} 22. Bf4 {[%clk 0:00:39]}  Be4 {[%clk 0:00:45]} 23. Ne5 {[%clk 0:00:34]}  Qb7 {[%clk 0:00:07]} 24. Ng4 {[%clk 0:00:25]}  h5 {[%clk 0:00:04]} 25. Ne3 {[%clk 0:00:16]}  Qd7 {[%clk 0:00:04]} 26. f3 {[%clk 0:00:13]}  Bf5 {[%clk 0:00:04]} 27. Nxf5 {[%clk 0:00:12]}  Qxf5 {[%clk 0:00:04]} 28. Be3 {[%clk 0:00:10]}  Bf6 {[%clk 0:00:04]} 29. Bf2 {[%clk 0:00:10]}  Bg5 {[%clk 0:00:04]} 30. Qc2 {[%clk 0:00:08]}  Bxc1 {[%clk 0:00:04]} 31. Qxf5 {[%clk 0:00:07]}  gxf5 {[%clk 0:00:03]} 32. Rxc1 {[%clk 0:00:08]}  Re2 {[%clk 0:00:03]} 33. b3 {[%clk 0:00:08]}  Rxa2 {[%clk 0:00:03]} 34. bxa4 {[%clk 0:00:08]}  Rxa4 {[%clk 0:00:03]} 35. Rb1 {[%clk 0:00:09]}  Rc4 {[%clk 0:00:02]} 36. Rb7 {[%clk 0:00:09]}  Re8 {[%clk 0:00:02]} 37. Kh2 {[%clk 0:00:08]}  Kg7 {[%clk 0:00:03]} 38. Bg3 {[%clk 0:00:08]}  Kg6 {[%clk 0:00:03]} 39. Be5 {[%clk 0:00:08]}  f6 {[%clk 0:00:03]} 40. Bd6 {[%clk 0:00:06]}  Re2 {[%clk 0:00:02]} 41. Bf8 {[%clk 0:00:06]}  f4 {[%clk 0:00:03]} 42. h4 {[%clk 0:00:04]}  Rxd4 {[%clk 0:00:02]} 43. Rg7+ {[%clk 0:00:04]}  Kf5 {[%clk 0:00:02]} 44. Rh7 {[%clk 0:00:05]}  Rdd2 {[%clk 0:00:02]} 45. Rxh5+ {[%clk 0:00:05]}  Kg6 {[%clk 0:00:02]} 46. Rh6+ {[%clk 0:00:05]}  Kf7 {[%clk 0:00:02]} 47. Bd6 {[%clk 0:00:05]}  Rxg2+ {[%clk 0:00:02]} 48. Kh3 {[%clk 0:00:05]}  Rg3# {[%clk 0:00:03]} 0-1


[Site "https://www.chess.com"]

[Event "Titled Tuesday Blitz June 27 Late 2023"]
[White "Powell, Paul"]
[Black "Winkels, Marcel"]
[WhiteFideId "2005840"]
[BlackFideId "1003887"]
[WhiteElo "2172"]
[BlackElo "2079"]
[Result "1-0"]
[Round "7"]
[TimeControl "180+2"]
[Date "2023.06.27"]
[WhiteClock "0:00:38"]
[BlackClock "0:00:00"]
[Board "146"]

1. d4 {[%clk 0:03:00]}  Nf6 {[%clk 0:02:57]} 2. Nf3 {[%clk 0:03:00]}  g6 {[%clk 0:02:56]} 3. Bf4 {[%clk 0:03:00]}  Bg7 {[%clk 0:02:56]} 4. e3 {[%clk 0:03:00]}  O-O {[%clk 0:02:55]} 5. Be2 {[%clk 0:03:01]}  d6 {[%clk 0:02:49]} 6. O-O {[%clk 0:03:00]}  Nbd7 {[%clk 0:02:48]} 7. c4 {[%clk 0:02:59]}  c5 {[%clk 0:02:48]} 8. Nc3 {[%clk 0:02:59]}  b6 {[%clk 0:02:39]} 9. Re1 {[%clk 0:02:59]}  Bb7 {[%clk 0:02:37]} 10. h3 {[%clk 0:02:58]}  Ne4 {[%clk 0:02:30]} 11. Rc1 {[%clk 0:02:57]}  Nxc3 {[%clk 0:02:29]} 12. Rxc3 {[%clk 0:02:57]}  Nf6 {[%clk 0:02:25]} 13. Rc1 {[%clk 0:02:50]}  a6 {[%clk 0:02:16]} 14. b3 {[%clk 0:02:46]}  Ra7 {[%clk 0:02:03]} 15. d5 {[%clk 0:02:37]}  Ba8 {[%clk 0:01:50]} 16. Bd3 {[%clk 0:02:30]}  Rb7 {[%clk 0:01:49]} 17. Qe2 {[%clk 0:02:19]}  Nd7 {[%clk 0:01:21]} 18. e4 {[%clk 0:02:08]}  Qb8 {[%clk 0:01:19]} 19. e5 {[%clk 0:01:54]}  b5 {[%clk 0:01:08]} 20. e6 {[%clk 0:01:42]}  Nf6 {[%clk 0:01:03]} 21. exf7+ {[%clk 0:01:08]}  Rxf7 {[%clk 0:01:02]} 22. Ng5 {[%clk 0:01:08]}  Rf8 {[%clk 0:00:27]} 23. Qe6+ {[%clk 0:01:05]}  Kh8 {[%clk 0:00:19]} 24. Nf7+ {[%clk 0:01:04]}  Rxf7 {[%clk 0:00:20]} 25. Qxf7 {[%clk 0:01:05]}  Nh5 {[%clk 0:00:20]} 26. Bg5 {[%clk 0:00:53]}  Nf6 {[%clk 0:00:17]} 27. Rxe7 {[%clk 0:00:43]}  Rxe7 {[%clk 0:00:11]} 28. Qxe7 {[%clk 0:00:42]}  Ne8 {[%clk 0:00:00]} 29. Re1 {[%clk 0:00:38]} 1-0


[Site "https://www.chess.com"]

[Event "Titled Tuesday Blitz June 27 Late 2023"]
[White "Indjic, Aleksandar"]
[Black "Nakamura, Hikaru"]
[WhiteFideId "911925"]
[BlackFideId "2016192"]
[WhiteElo "2972"]
[BlackElo "3218"]
[Result "1/2-1/2"]
[Round "8"]
[TimeControl "180+2"]
[Date "2023.06.27"]
[WhiteClock "0:00:15"]
[BlackClock "0:01:02"]
[Board "2"]

1. e4 {[%clk 0:03:00]}  c5 {[%clk 0:03:00]} 2. Nf3 {[%clk 0:03:01]}  Nc6 {[%clk 0:02:59]} 3. Bb5 {[%clk 0:03:00]}  g6 {[%clk 0:02:59]} 4. O-O {[%clk 0:02:59]}  Bg7 {[%clk 0:02:58]} 5. Bxc6 {[%clk 0:02:59]}  bxc6 {[%clk 0:02:57]} 6. Re1 {[%clk 0:02:56]}  Nh6 {[%clk 0:02:53]} 7. c3 {[%clk 0:02:55]}  O-O {[%clk 0:02:52]} 8. h3 {[%clk 0:02:50]}  d5 {[%clk 0:02:50]} 9. e5 {[%clk 0:02:48]}  f6 {[%clk 0:02:43]} 10. d4 {[%clk 0:02:45]}  cxd4 {[%clk 0:02:42]} 11. cxd4 {[%clk 0:02:44]}  Nf7 {[%clk 0:02:37]} 12. exf6 {[%clk 0:02:44]}  exf6 {[%clk 0:02:36]} 13. Nc3 {[%clk 0:02:44]}  g5 {[%clk 0:02:36]} 14. b3 {[%clk 0:02:41]}  Bf5 {[%clk 0:02:32]} 15. Ba3 {[%clk 0:02:32]}  Re8 {[%clk 0:02:32]} 16. Rxe8+ {[%clk 0:02:32]}  Qxe8 {[%clk 0:02:32]} 17. Qf1 {[%clk 0:02:31]}  Be4 {[%clk 0:02:26]} 18. Re1 {[%clk 0:02:21]}  f5 {[%clk 0:02:26]} 19. Bc5 {[%clk 0:02:20]}  Qd7 {[%clk 0:02:17]} 20. Nd2 {[%clk 0:02:19]}  Nd8 {[%clk 0:02:17]} 21. f3 {[%clk 0:01:16]}  Ne6 {[%clk 0:02:17]} 22. fxe4 {[%clk 0:01:17]}  Nxc5 {[%clk 0:02:13]} 23. e5 {[%clk 0:01:17]}  Ne4 {[%clk 0:02:05]} 24. Ndxe4 {[%clk 0:01:13]}  fxe4 {[%clk 0:02:02]} 25. Na4 {[%clk 0:01:13]}  Rf8 {[%clk 0:01:43]} 26. Qe2 {[%clk 0:01:13]}  Qe7 {[%clk 0:01:44]} 27. Rf1 {[%clk 0:01:06]}  Rxf1+ {[%clk 0:01:39]} 28. Kxf1 {[%clk 0:01:04]}  c5 {[%clk 0:01:40]} 29. Nxc5 {[%clk 0:00:59]}  Bxe5 {[%clk 0:01:40]} 30. Nxe4 {[%clk 0:00:57]}  Bxd4 {[%clk 0:01:32]} 31. Nd2 {[%clk 0:00:56]}  Qf6+ {[%clk 0:01:26]} 32. Nf3 {[%clk 0:00:56]}  Bb6 {[%clk 0:01:26]} 33. Qe8+ {[%clk 0:00:52]}  Kg7 {[%clk 0:01:24]} 34. Qd7+ {[%clk 0:00:52]}  Kf8 {[%clk 0:01:21]} 35. Qxd5 {[%clk 0:00:47]}  Qa1+ {[%clk 0:01:20]} 36. Ke2 {[%clk 0:00:47]}  Qxa2+ {[%clk 0:01:18]} 37. Nd2 {[%clk 0:00:31]}  h6 {[%clk 0:01:18]} 38. Kd3 {[%clk 0:00:28]}  Qa1 {[%clk 0:01:02]} 39. Qd6+ {[%clk 0:00:26]}  Kg7 {[%clk 0:01:02]} 40. Qe7+ {[%clk 0:00:26]}  Kg6 {[%clk 0:01:01]} 41. Qe8+ {[%clk 0:00:23]}  Kg7 {[%clk 0:01:01]} 42. Qe7+ {[%clk 0:00:24]}  Kg6 {[%clk 0:01:01]} 43. Qe6+ {[%clk 0:00:24]}  Kg7 {[%clk 0:01:02]} 44. Qe7+ {[%clk 0:00:15]} 1/2-1/2


[Site "https://www.chess.com"]